fUST/lending_fUST_20250722
["ID","MTS","AMOUNT","RATE_DAILY","PERIOD"]
[373945008,1753159848997,-675.95,0.0001804,2]
[373945010,1753159849006,-460.0,0.0001804,2]
[373945012,1753159849015,-780.12,0.0001804,2]
[373945014,1753159849025,-460.0,0.0001804,2]
[373945016,1753159849034,-353.3066504,0.00018176,2]
[373945018,1753159849043,-500.0,0.00018243,2]
[373945020,1753159849052,-500.0,0.00018243,2]
[373945022,1753159849061,-500.0,0.00018243,2]
[373945024,1753159849070,-500.0,0.00018243,2]
[373945026,1753159849080,-500.98278549,0.00018243,2]
[373945028,1753159849089,-500.0,0.00018243,2]
[373945030,1753159849098,-500.0,0.00018243,2]
[373945032,1753159849107,-406.32816737,0.00018243,2]
[373945034,1753159849117,-233.29956809,0.00018243,2]
[373945036,1753159849127,-500.0,0.00018243,2]
[373945038,1753159849137,-160.0,0.00018285,2]
[373945040,1753159849147,-839.90542673,0.00018285,2]
[373945042,1753159849157,-12619.94447631,0.00018285,2]
[373945044,1753159849169,-231.06963584,0.00018285,2]
[373945046,1753159849178,-160.0,0.00018285,2]
[373945048,1753159849189,-214.6393183,0.00018285,2]
[373945050,1753159849198,-160.0,0.00018285,2]
[373945052,1753159849208,-160.0,0.00018285,2]
[373945054,1753159849218,-160.0,0.00018285,2]
[373945060,1753159849262,-160.0,0.00018285,2]
[373945062,1753159849272,-215.80012421,0.00018285,2]
[373945064,1753159849282,-526.07605158,0.00018285,2]
[373945066,1753159849292,-476.60259688,0.00018285,2]
[373945068,1753159849302,-460.0,0.00018304,2]
[373945070,1753159849312,-460.0,0.00018304,2]
[373945072,1753159849323,-460.0,0.00018304,2]
[373945074,1753159849332,-537.28,0.00018304,2]
[373945076,1753159849341,-303.5,0.00018304,2]
[373945078,1753159849351,-983.6,0.00018305,2]
[373945080,1753159849361,-460.0,0.00018305,2]
[373945082,1753159849375,-460.0,0.00018305,2]
[373945084,1753159849385,-925.89,0.00018305,2]
[373945086,1753159849395,-460.0,0.00018305,2]
[373945088,1753159849406,-460.0,0.00018305,2]
[373945090,1753159849419,-460.0,0.00018305,2]
[373945092,1753159849429,-460.0,0.00018305,2]
[373945094,1753159849439,-460.0,0.00018305,2]
[373945097,1753159849450,-460.0,0.00018305,2]
[373945099,1753159849460,-460.0,0.00018305,2]
[373945101,1753159849469,-460.0,0.00018305,2]
[373945103,1753159849479,-460.0,0.00018306,2]
[373945105,1753159849488,-460.0,0.00018306,2]
[373945107,1753159849498,-460.0,0.00018306,2]
[373945109,1753159849507,-460.0,0.00018306,2]
[373945111,1753159849517,-460.0,0.00018306,2]
[373945113,1753159849526,-460.0,0.00018306,2]
[373945115,1753159849535,-460.0,0.00018306,2]
[373945117,1753159849544,-460.0,0.00018306,2]
[373945119,1753159849554,-460.0,0.00018306,2]
[373945121,1753159849563,-460.0,0.00018306,2]
[373945123,1753159849573,-1904.31,0.00018306,2]
[373945125,1753159849582,-460.0,0.00018306,2]
[373945127,1753159849591,-460.0,0.00018306,2]
[373945129,1753159849600,-460.0,0.00018306,2]
[373945131,1753159849610,-460.0,0.00018306,2]
[373945133,1753159849619,-460.0,0.00018306,2]
[373945135,1753159849629,-460.0,0.00018306,2]
[373945137,1753159849639,-460.0,0.00018306,2]
[373945139,1753159849648,-460.0,0.00018306,2]
[373945141,1753159849659,-460.0,0.00018306,2]
[373945143,1753159849672,-460.0,0.00018306,2]
[373945145,1753159849681,-460.0,0.00018306,2]
[373945147,1753159849690,-460.0,0.00018306,2]
[373945149,1753159849701,-460.0,0.00018306,2]
[373945151,1753159849710,-460.0,0.00018306,2]
[373945153,1753159849719,-460.0,0.00018306,2]
[373945155,1753159849728,-460.0,0.00018306,2]
[373945157,1753159849738,-460.0,0.00018306,2]
[373945159,1753159849747,-460.0,0.00018306,2]
[373945161,1753159849757,-187.94,0.00018306,2]
[373945163,1753159849766,-389.67,0.00018306,2]
[373945165,1753159849775,-460.0,0.00018306,2]
[373945167,1753159849784,-1176.08,0.00018306,2]
[373945170,1753159849793,-460.0,0.00018306,2]
[373945172,1753159849803,-460.0,0.00018306,2]
[373945174,1753159849812,-189.78,0.00018306,2]
[373945176,1753159849821,-445.04,0.00018307,2]
[373945177,1753159849831,-453.31,0.00018307,2]
[373945180,1753159849841,-572.63,0.00018307,2]
[373945182,1753159849850,-556.4,0.00018307,2]
[373945184,1753159849860,-533.21,0.00018307,2]
[373945186,1753159849869,-1048.87,0.00018307,2]
[373945188,1753159849878,-460.0,0.00018308,2]
[373945190,1753159849887,-460.0,0.00018308,2]
[373945192,1753159849897,-460.0,0.00018308,2]
[373945194,1753159849906,-202.43,0.00018308,2]
[373945196,1753159849919,-182.29,0.00018308,2]
[373945198,1753159849928,-434.47,0.00018308,2]
[373945200,1753159849937,-460.0,0.00018308,2]
[373945202,1753159849946,-460.0,0.00018308,2]
[373945204,1753159849955,-460.0,0.00018308,2]
[373945206,1753159849965,-281.22,0.00018308,2]
[373945208,1753159849975,-729.62,0.00018309,2]
[373945210,1753159849984,-460.0,0.00018309,2]
[373945212,1753159849993,-824.81,0.00018314,2]
[373945213,1753159850002,-460.0,0.00018314,2]
[373945215,1753159850012,-972.0,0.00018314,2]
[373945217,1753159850022,-1097.38,0.00018314,2]
[373945219,1753159850031,-495.15,0.00018314,2]
[373945221,1753159850041,-675.95,0.00018314,2]
[373945223,1753159850051,-460.0,0.00018314,2]
[373945225,1753159850060,-780.12,0.00018314,2]
[373945227,1753159850069,-223.0315306,0.0001834,2]
[373945229,1753159850079,-260.0,0.00018348,2]
[373945231,1753159850088,-1000.0,0.00018368,2]
[373945233,1753159850098,-150.0,0.00018372,2]
[373945235,1753159850107,-420.0,0.00018399,2]
[373945237,1753159850118,-301.0,0.00018399,2]
[373945239,1753159850127,-173.0,0.00018438,3]
[373945241,1753159850137,-353.3066504,0.00018452,2]
[373945243,1753159850146,-1200.0,0.00018491,2]
[373945245,1753159850155,-502.91141735,0.00018515,2]
[373945247,1753159850167,-500.0,0.00018515,2]
[373945249,1753159850176,-500.0,0.00018515,2]
[373945251,1753159850186,-460.0,0.00018578,2]
[373945253,1753159850195,-466.28,0.00018578,2]
[373945255,1753159850205,-460.0,0.00018578,2]
[373945257,1753159850215,-537.28,0.00018578,2]
[373945259,1753159850224,-983.6,0.00018579,2]
[373945261,1753159850234,-460.0,0.00018579,2]
[373945263,1753159850243,-460.0,0.00018579,2]
[373945265,1753159850252,-925.89,0.00018579,2]
[373945267,1753159850263,-460.0,0.00018579,2]
[373945269,1753159850272,-460.0,0.00018579,2]
[373945271,1753159850282,-460.0,0.00018579,2]
[373945272,1753159850291,-460.0,0.00018579,2]
[373945274,1753159850302,-460.0,0.00018579,2]
[373945276,1753159850312,-154.88,0.0001858,2]
[373945278,1753159850323,-571.02,0.0001858,2]
[373945280,1753159850333,-460.0,0.0001858,2]
[373945282,1753159850343,-460.0,0.0001858,2]
[373945284,1753159850352,-1904.31,0.0001858,2]
[373945286,1753159850364,-460.0,0.0001858,2]
[373945288,1753159850374,-460.0,0.0001858,2]
[373945290,1753159850383,-460.0,0.0001858,2]
[373945292,1753159850392,-460.0,0.0001858,2]
[373945294,1753159850401,-460.0,0.0001858,2]
[373945296,1753159850412,-460.0,0.0001858,2]
[373945298,1753159850427,-460.0,0.0001858,2]
[373945299,1753159850437,-460.0,0.0001858,2]
[373945302,1753159850447,-460.0,0.0001858,2]
[373945303,1753159850456,-460.0,0.0001858,2]
[373945305,1753159850467,-460.0,0.0001858,2]
[373945307,1753159850477,-586.0,0.0001858,2]
[373945309,1753159850487,-460.0,0.0001858,2]
[373945311,1753159850496,-460.0,0.0001858,2]
[373945313,1753159850506,-460.0,0.0001858,2]
[373945316,1753159850516,-460.0,0.0001858,2]
[373945317,1753159850526,-573.0,0.0001858,2]
[373945319,1753159850535,-1176.08,0.0001858,2]
[373945321,1753159850545,-460.0,0.0001858,2]
[373945323,1753159850554,-315.69,0.0001858,2]
[373945325,1753159850565,-533.21,0.00018581,2]
[373945328,1753159850575,-1048.87,0.00018581,2]
[373945329,1753159850585,-460.0,0.00018582,2]
[373945331,1753159850594,-460.0,0.00018582,2]
[373945333,1753159850603,-202.56,0.00018582,2]
[373945335,1753159850613,-460.0,0.00018582,2]
[373945337,1753159850623,-460.0,0.00018582,2]
[373945340,1753159850632,-729.62,0.00018583,2]
[373945341,1753159850642,-460.0,0.00018583,2]
[373945343,1753159850651,-824.81,0.00018588,2]
[373945346,1753159850661,-460.0,0.00018588,2]
[373945347,1753159850674,-972.0,0.00018588,2]
[373945349,1753159850684,-1097.38,0.00018588,2]
[373945352,1753159850694,-495.15,0.00018588,2]
[373945354,1753159850703,-675.95,0.00018588,2]
[373945355,1753159850712,-460.0,0.00018588,2]
[373945357,1753159850722,-780.12,0.00018588,2]
[373945359,1753159850731,-353.3066504,0.00018728,2]
[373945361,1753159850741,-158.25536882,0.00018744,2]
[373945363,1753159850751,-309.14077496,0.00018744,2]
[373945365,1753159850760,-158.26022645,0.00018744,2]
[373945367,1753159850769,-158.25881415,0.00018744,2]
[373945369,1753159850779,-500.0,0.00018744,2]
[373945371,1753159850788,-500.0,0.00018744,2]
[373945373,1753159850798,-199.8,0.00018852,2]
[373945376,1753159850808,-537.28,0.00018852,2]
[373945378,1753159850817,-983.6,0.00018853,2]
[373945380,1753159850827,-460.0,0.00018853,2]
[373945381,1753159850836,-214.36,0.00018853,2]
[373945383,1753159850846,-925.89,0.00018853,2]
[373945386,1753159850856,-226.22,0.00018853,2]
[373945388,1753159850866,-460.0,0.00018853,2]
[373945390,1753159850876,-460.0,0.00018853,2]
[373945392,1753159850885,-252.04,0.00018853,2]
[373945393,1753159850894,-460.0,0.00018853,2]
[373945395,1753159850904,-460.0,0.00018854,2]
[373945398,1753159850916,-1904.31,0.00018854,2]
[373945399,1753159850926,-460.0,0.00018854,2]
[373945401,1753159850936,-460.0,0.00018854,2]
[373945403,1753159850945,-460.0,0.00018854,2]
[373945405,1753159850955,-460.0,0.00018854,2]
[373945408,1753159850965,-460.0,0.00018854,2]
[373945409,1753159850974,-460.0,0.00018854,2]
[373945411,1753159850983,-460.0,0.00018854,2]
[373945413,1753159850993,-1176.08,0.00018854,2]
[373945415,1753159851002,-460.0,0.00018854,2]
[373945417,1753159851012,-533.21,0.00018855,2]
[373945419,1753159851022,-1048.87,0.00018855,2]
[373945421,1753159851031,-460.0,0.00018856,2]
[373945423,1753159851042,-460.0,0.00018856,2]
[373945426,1753159851051,-460.0,0.00018856,2]
[373945427,1753159851061,-460.0,0.00018856,2]
[373945429,1753159851071,-729.62,0.00018857,2]
[373945431,1753159851081,-460.0,0.00018857,2]
[373945433,1753159851090,-824.81,0.00018862,2]
[373945435,1753159851099,-460.0,0.00018862,2]
[373945437,1753159851109,-972.0,0.00018862,2]
[373945440,1753159851119,-1097.38,0.00018862,2]
[373945442,1753159851131,-495.15,0.00018862,2]
[373945444,1753159851140,-675.95,0.00018862,2]
[373945446,1753159851150,-460.0,0.00018862,2]
[373945448,1753159851159,-780.12,0.00018862,2]
[373945450,1753159851171,-360.0,0.00018896,2]
[373945452,1753159851182,-1269.12575618,0.000189,2]
[373945454,1753159851191,-1457.84311865,0.00018919,2]
[373945456,1753159851200,-353.3066504,0.00019003,2]
[373945458,1753159851210,-648.0,0.00019098,2]
[373945460,1753159851219,-407.0,0.00019098,2]
[373945462,1753159851229,-419.15,0.00019098,2]
[373945464,1753159851239,-968.0,0.00019098,2]
[373945466,1753159851249,-537.28,0.00019126,2]
[373945468,1753159851258,-983.6,0.00019127,2]
[373945470,1753159851268,-460.0,0.00019127,2]
[373945471,1753159851278,-925.89,0.00019127,2]
[373945474,1753159851288,-460.0,0.00019127,2]
[373945476,1753159851297,-460.0,0.00019127,2]
[373945478,1753159851307,-460.0,0.00019127,2]
[373945479,1753159851316,-460.0,0.00019128,2]
[373945481,1753159851326,-1904.31,0.00019128,2]
[373945483,1753159851336,-460.0,0.00019128,2]
[373945485,1753159851346,-460.0,0.00019128,2]
[373945487,1753159851356,-422.74,0.00019128,2]
[373945490,1753159851367,-448.62,0.00019128,2]
[373945491,1753159851380,-204.65519776,0.00019128,2]
[373945493,1753159851389,-460.0,0.00019128,2]
[373945495,1753159851399,-460.0,0.00019128,2]
[373945497,1753159851409,-1176.08,0.00019128,2]
[373945499,1753159851422,-460.0,0.00019128,2]
[373945501,1753159851432,-533.21,0.00019129,2]
[373945503,1753159851442,-1048.87,0.00019129,2]
[373945505,1753159851454,-460.0,0.0001913,2]
[373945507,1753159851464,-460.0,0.0001913,2]
[373945509,1753159851474,-460.0,0.0001913,2]
[373945511,1753159851484,-363.75,0.0001913,2]
[373945514,1753159851494,-729.62,0.00019131,2]
[373945516,1753159851504,-460.0,0.00019131,2]
[373945517,1753159851514,-824.81,0.00019136,2]
[373945520,1753159851524,-460.0,0.00019136,2]
[373945522,1753159851534,-972.0,0.00019136,2]
[373945524,1753159851544,-1097.38,0.00019136,2]
[373945526,1753159851553,-495.15,0.00019136,2]
[373945527,1753159851562,-675.95,0.00019136,2]
[373945529,1753159851572,-460.0,0.00019136,2]
[373945531,1753159851581,-780.12,0.00019136,2]
[373945533,1753159851590,-430.046328,0.00019178,2]
[373945535,1753159851600,-150.0,0.00019207,2]
[373945537,1753159851609,-353.3066504,0.00019279,2]
[373945539,1753159851619,-19596.2861495,0.00019329,2]
[373945582,1753159852030,-2615.16082599,0.00019329,2]
[373945584,1753159852042,-7460.92651209,0.00019329,2]
[373945592,1753159852299,-476.63845343,0.00016934,2]
[373945593,1753159852308,-460.0,0.00016938,2]
[373945594,1753159852318,-460.0,0.00017212,2]
[373945596,1753159852327,-471.14596406,0.00017213,2]
[373945598,1753159852337,-2313.87898544,0.00019329,2]
[373945600,1753159852354,-429.42624312,0.00019329,2]
[373945603,1753159852369,-700.0,0.00019329,2]
[373945605,1753159852381,-1857.91927819,0.00019329,2]
[373945616,1753159852478,-33266.83988883,0.00016836,2]
[373945618,1753159852490,-10416.53002944,0.00016836,2]
[373945630,1753159853072,158.96059562,0.00016701,2]
[373948117,1753160046786,152.517526,0.00023,30]
[373948118,1753160047096,152.517526,0.00023,30]
[373948119,1753160089516,6446.0,0.00023,30]
[373948120,1753160117125,224.54258475,0.0001633,2]
[373948122,1753160153888,154.62392441,0.00016635,2]
[373948123,1753160275781,310.10627398,0.00016701,2]
[373948124,1753160404336,152.517526,0.0002254,30]
[373948125,1753160405330,152.517526,0.0002208,30]
[373948126,1753160430542,1097.2332619,0.00015961,2]
[373948127,1753160514625,184.00853,0.00015833,2]
[373948128,1753160552623,155.80101223,0.00024,60]
[373948129,1753160620676,200.0,0.00023,30]
[373948130,1753160622507,200.0,0.00023,30]
[373948135,1753160699596,152.517526,0.0002254,30]
[373948136,1753160699907,152.517526,0.0002208,30]
[373948137,1753160700205,152.517526,0.0002162,30]
[373948138,1753160714725,259.453283,0.00013699,2]
[373948144,1753160930708,154.62392441,0.00016635,2]
[373948145,1753160996614,3748.0,0.00024658,60]
[373948245,1753161033515,-161.19086039,0.0001673,2]
[373948246,1753161033525,-287.0,0.00016735,2]
[373948247,1753161033535,-252.03429826,0.00016735,2]
[373948248,1753161033545,-500.0,0.00016757,2]
[373948249,1753161033555,-300.0,0.0001683,2]
[373948250,1753161033565,-300.0,0.0001683,2]
[373948251,1753161033576,-300.0,0.0001683,2]
[373948252,1753161033586,-460.0,0.00016831,2]
[373948253,1753161033596,-1200.0,0.00016831,2]
[373948255,1753161033606,-460.0,0.00016832,2]
[373948257,1753161033616,-381.50231683,0.00016832,2]
[373948685,1753161038068,-460.0,0.00016831,2]
[373948687,1753161038077,-78.49768317,0.00016832,2]
[373948689,1753161038087,-460.0,0.00016832,2]
[373948691,1753161038097,-186.80275435,0.00016832,2]
[373948717,1753161038337,-273.19724565,0.00016832,2]
[373948719,1753161038348,-895.02,0.00016832,2]
[373948721,1753161038358,-460.0,0.00016832,2]
[373948723,1753161038368,-460.0,0.00016832,2]
[373948725,1753161038377,-864.36,0.00016832,2]
[373948727,1753161038387,-460.0,0.00016832,2]
[373948729,1753161038398,-499.56818397,0.00016832,2]
[373948731,1753161038407,-460.0,0.00016832,2]
[373948733,1753161038417,-460.0,0.00016832,2]
[373948735,1753161038427,-460.0,0.00016832,2]
[373948737,1753161038437,-460.0,0.00016832,2]
[373948739,1753161038446,-460.0,0.00016832,2]
[373948741,1753161038455,-460.0,0.00016832,2]
[373948743,1753161038465,-460.0,0.00016832,2]
[373948745,1753161038474,-474.91,0.00016832,2]
[373948747,1753161038483,-460.0,0.00016832,2]
[373948749,1753161038493,-460.0,0.00016832,2]
[373948751,1753161038503,-460.0,0.00016832,2]
[373948753,1753161038512,-460.0,0.00016832,2]
[373948755,1753161038522,-303.5,0.00016832,2]
[373948757,1753161038531,-460.0,0.00016832,2]
[373948759,1753161038540,-460.0,0.00016832,2]
[373948761,1753161038550,-15025.87086407,0.00016832,2]
[373948763,1753161038559,-460.0,0.00016833,2]
[373948765,1753161038569,-461.4177261,0.00016833,2]
[373948767,1753161038579,-460.0,0.00016833,2]
[373948769,1753161038589,-460.0,0.00016833,2]
[373948771,1753161038600,-460.0,0.00016833,2]
[373948773,1753161038609,-460.0,0.00016833,2]
[373948792,1753161038794,-460.0,0.00016833,2]
[373948794,1753161038805,-460.0,0.00016833,2]
[373948796,1753161038815,-387.68655292,0.00016833,2]
[373948798,1753161038825,-460.0,0.00016833,2]
[373948800,1753161038835,-460.0,0.00016833,2]
[373948802,1753161038844,-460.0,0.00016833,2]
[373948804,1753161038854,-461.71584566,0.00016833,2]
[373948806,1753161038864,-460.0,0.00016833,2]
[373948808,1753161038874,-460.0,0.00016833,2]
[373948810,1753161038884,-460.0,0.00016833,2]
[373948812,1753161038894,-460.0,0.00016833,2]
[373948813,1753161038905,-460.0,0.00016833,2]
[373948814,1753161038914,-460.0,0.00016833,2]
[373948815,1753161038923,-460.0,0.00016833,2]
[373948816,1753161038932,-460.0,0.00016833,2]
[373948817,1753161038942,-460.0,0.00016833,2]
[373948818,1753161038951,-460.87174268,0.00016833,2]
[373948819,1753161038961,-460.0,0.00016833,2]
[373948820,1753161038970,-460.0,0.00016833,2]
[373948821,1753161038980,-460.0,0.00016833,2]
[373948822,1753161038990,-460.0,0.00016833,2]
[373948823,1753161039000,-460.0,0.00016833,2]
[373948824,1753161039009,-460.0,0.00016833,2]
[373948825,1753161039019,-460.0,0.00016833,2]
[373948826,1753161039028,-460.0,0.00016833,2]
[373948827,1753161039037,-460.0,0.00016833,2]
[373948828,1753161039046,-460.0,0.00016833,2]
[373948829,1753161039055,-460.0,0.00016833,2]
[373948830,1753161039065,-460.0,0.00016833,2]
[373948831,1753161039075,-460.0,0.00016833,2]
[373948832,1753161039084,-460.0,0.00016833,2]
[373948833,1753161039093,-460.0,0.00016833,2]
[373948834,1753161039109,-460.0,0.00016833,2]
[373948835,1753161039123,-460.0,0.00016833,2]
[373948836,1753161039133,-462.89974154,0.00016833,2]
[373948837,1753161039143,-460.0,0.00016833,2]
[373948838,1753161039156,-460.0,0.00016833,2]
[373948839,1753161039166,-460.0,0.00016833,2]
[373948840,1753161039175,-460.0,0.00016833,2]
[373948841,1753161039186,-460.0,0.00016833,2]
[373948842,1753161039196,-460.0,0.00016833,2]
[373948843,1753161039207,-460.0,0.00016833,2]
[373948844,1753161039216,-460.0,0.00016833,2]
[373948845,1753161039227,-460.0,0.00016833,2]
[373948846,1753161039236,-460.0,0.00016833,2]
[373948847,1753161039247,-460.0,0.00016833,2]
[373948848,1753161039257,-460.0,0.00016833,2]
[373948849,1753161039266,-460.0,0.00016833,2]
[373948850,1753161039276,-467.25125562,0.00016833,2]
[373948851,1753161039287,-460.0,0.00016833,2]
[373948852,1753161039297,-460.0,0.00016833,2]
[373948853,1753161039307,-460.0,0.00016833,2]
[373948854,1753161039317,-460.0,0.00016833,2]
[373948855,1753161039328,-460.0,0.00016833,2]
[373948856,1753161039338,-460.0,0.00016833,2]
[373948858,1753161039348,-460.0,0.00016833,2]
[373948860,1753161039359,-460.0,0.00016833,2]
[373948862,1753161039369,-460.0,0.00016833,2]
[373948864,1753161039380,-460.0,0.00016833,2]
[373948866,1753161039390,-460.97895807,0.00016833,2]
[373948868,1753161039401,-468.73722291,0.00016833,2]
[373948870,1753161039411,-460.0,0.00016833,2]
[373948872,1753161039421,-460.0,0.00016833,2]
[373948874,1753161039432,-464.4710851,0.00016833,2]
[373948876,1753161039442,-460.0,0.00016833,2]
[373948878,1753161039451,-460.0,0.00016833,2]
[373948881,1753161039462,-460.0,0.00016833,2]
[373948883,1753161039472,-460.0,0.00016833,2]
[373948885,1753161039482,-460.0,0.00016833,2]
[373948887,1753161039492,-460.0,0.00016833,2]
[373948890,1753161039503,-460.0,0.00016833,2]
[373948892,1753161039512,-461.41203,0.00016833,2]
[373948894,1753161039522,-460.0,0.00016833,2]
[373948896,1753161039531,-460.0,0.00016833,2]
[373948898,1753161039541,-460.0,0.00016833,2]
[373948900,1753161039551,-460.0,0.00016833,2]
[373948902,1753161039561,-460.0,0.00016833,2]
[373948904,1753161039571,-460.0,0.00016833,2]
[373948906,1753161039580,-460.0,0.00016833,2]
[373948908,1753161039590,-460.0,0.00016833,2]
[373948910,1753161039600,-435.53,0.00016833,2]
[373948912,1753161039610,-460.0,0.00016833,2]
[373948914,1753161039619,-460.0,0.00016833,2]
[373948915,1753161039630,-460.0,0.00016833,2]
[373948917,1753161039640,-460.0,0.00016833,2]
[373948920,1753161039651,-460.0,0.00016833,2]
[373948922,1753161039666,-460.0,0.00016833,2]
[373948924,1753161039676,-460.0,0.00016833,2]
[373948926,1753161039686,-187.94,0.00016833,2]
[373948928,1753161039696,-460.0,0.00016833,2]
[373948930,1753161039708,-460.0,0.00016833,2]
[373948932,1753161039718,-460.0,0.00016833,2]
[373948933,1753161039727,-460.0,0.00016833,2]
[373948934,1753161039737,-460.0,0.00016833,2]
[373948935,1753161039747,-460.0,0.00016833,2]
[373948936,1753161039756,-460.0,0.00016833,2]
[373948937,1753161039766,-413.82805437,0.00016833,2]
[373948938,1753161039776,-460.0,0.00016833,2]
[373948939,1753161039786,-460.0,0.00016833,2]
[373948940,1753161039796,-460.0,0.00016833,2]
[373948941,1753161039809,-460.0,0.00016833,2]
[373948942,1753161039827,-160.0,0.00016834,2]
[373948943,1753161039838,-460.0,0.00016834,2]
[373948944,1753161039848,-460.0,0.00016834,2]
[373948945,1753161039858,-460.0,0.00016834,2]
[373948946,1753161039867,-460.0,0.00016834,2]
[373948947,1753161039878,-460.0,0.00016834,2]
[373948948,1753161039888,-460.0,0.00016834,2]
[373948949,1753161039899,-460.0,0.00016834,2]
[373948950,1753161039909,-207.6269674,0.00016834,2]
[373948951,1753161039919,-460.0,0.00016834,2]
[373948952,1753161039929,-460.0,0.00016834,2]
[373948953,1753161039938,-460.0,0.00016834,2]
[373948954,1753161039948,-405.82940299,0.00016834,2]
[373948955,1753161039958,-460.0,0.00016834,2]
[373948956,1753161039967,-460.0,0.00016834,2]
[373948957,1753161039977,-312.87605619,0.00016834,2]
[373948958,1753161039987,-486.47380722,0.00016834,2]
[373948959,1753161039997,-460.0,0.00016834,2]
[373948960,1753161040007,-460.0,0.00016834,2]
[373948961,1753161040017,-460.95285148,0.00016834,2]
[373948962,1753161040027,-460.0,0.00016834,2]
[373948963,1753161040037,-378.00044405,0.00016834,2]
[373948964,1753161040046,-460.0,0.00016834,2]
[373948965,1753161040056,-460.0,0.00016834,2]
[373948966,1753161040066,-477.17324292,0.00016834,2]
[373948967,1753161040076,-460.0,0.00016834,2]
[373948968,1753161040085,-462.61512538,0.00016834,2]
[373948969,1753161040095,-460.0,0.00016834,2]
[373948970,1753161040105,-460.0,0.00016834,2]
[373948971,1753161040115,-460.0,0.00016834,2]
[373948972,1753161040125,-460.0,0.00016834,2]
[373948973,1753161040135,-460.0,0.00016834,2]
[373948974,1753161040145,-175.92782881,0.00016834,2]
[373948975,1753161040157,-460.0,0.00016834,2]
[373948976,1753161040167,-460.0,0.00016834,2]
[373948977,1753161040177,-460.0,0.00016834,2]
[373948978,1753161040187,-460.0,0.00016834,2]
[373948979,1753161040196,-460.0,0.00016834,2]
[373948980,1753161040210,-460.0,0.00016834,2]
[373948981,1753161040220,-460.0,0.00016834,2]
[373948982,1753161040229,-460.0,0.00016834,2]
[373948983,1753161040240,-460.0,0.00016834,2]
[373948984,1753161040249,-460.0,0.00016834,2]
[373948985,1753161040259,-460.0,0.00016834,2]
[373948986,1753161040270,-460.0,0.00016834,2]
[373948987,1753161040279,-460.0,0.00016834,2]
[373948988,1753161040289,-460.0,0.00016834,2]
[373948989,1753161040299,-460.0,0.00016834,2]
[373948990,1753161040308,-460.0,0.00016834,2]
[373948991,1753161040319,-460.0,0.00016834,2]
[373948992,1753161040329,-490.83,0.00016834,2]
[373948993,1753161040339,-460.0,0.00016834,2]
[373948994,1753161040348,-704.68,0.00016834,2]
[373948995,1753161040358,-460.77409134,0.00016835,2]
[373948996,1753161040368,-461.38223286,0.00016835,2]
[373948997,1753161040378,-460.0,0.00016835,2]
[373948998,1753161040388,-460.0,0.00016835,2]
[373948999,1753161040399,-460.0,0.00016835,2]